Cogmind - Beta 15 @@@ ROGUE MODE // 2025.06.03 @ 01:39:11 Player: Tenderz Result: Destroyed by UO-O25(R) with Subdweller Laser Performance ------------- Evolutions (0) 0 Regions Visited (3) 600 Robots Destroyed (27) 135 Value Destroyed (669) 669 Prototype IDs (2) 40 Alien Tech Used (0) 0 Bonus (-43) -43 TOTAL SCORE: 1401 Bonus ------- Follower Combat Kills 110 Friendly Fire -153 Cogmind --------- Core Integrity 0/250 Matter 284/300 Energy 265/265 System Corruption 2% Temperature Cool (6) Movement Treading (240) Ox1 Location -10/Subcaves Parts ------- > --- POWER (1) -------- Improved Ion Engine > --- PROPULSION (2) --- Light Treads Light Treads > --- UTILITY (2) ------ High-capacity Storage Unit Light Armor Plating > --- WEAPON (2) ------- Subdweller Laser Grenade Launcher > --- INVENTORY (20) --- Subdweller Power Source Light Treads Light Treads Improved Heat Sink Large Storage Unit Medium Matter Pod (100) Structural Scanner Subdweller Optics Sensor Array Seismic Detector Targeting Computer EM Pulse Gun EM Pulse Gun Subdweller Laser Battle Rifle Multitool Peak State ------------ > --- POWER ------------ Improved Ion Engine > --- PROPULSION ------- Light Treads Light Treads > --- UTILITY ---------- High-capacity Storage Unit Seismic Detector > --- WEAPON ----------- Riot Gun Subdweller Laser > --- INVENTORY -------- Subdweller Power Source Light Treads Light Treads Light Treads Improved Heat Sink Large Storage Unit Medium Matter Pod Structural Scanner Sensor Array Targeting Computer Light Armor Plating Light Armor Plating EM Pulse Gun EM Pulse Gun Particle Gun Subdweller Laser Battle Rifle Grenade Launcher Multitool [Rating: 13] Favorites ----------- Power Improved Ion Engine Engine Improved Ion Engine Propulsion Light Treads Treads Light Treads Leg Aluminum Leg Utility Seismic Detector Device Seismic Detector Storage High-capacity Storage Unit Protection Light Armor Plating Weapon EM Pulse Gun Energy Gun EM Pulse Gun Energy Cannon Beam Cannon Launcher Grenade Launcher Special Weapon Plasma Cutter Slashing Weapon Mining Claw Special Melee Weapon Datajack Build | -11 -10 -10 -10 ------- Run | Yrd Mat Min Sub Slots Evolved . | . . . . Power . | . . . . Propulsion . | . . . . Utility . | . . . . Weapon . | . . . . Parts Attached 31 | 8 15 2 6 Power 3 | 1 1 1 . Engine 3 | 1 1 1 . Core . | . . . . Reactor . | . . . . Propulsion 7 | 3 2 1 1 Treads 4 | 1 1 1 1 Leg 3 | 2 1 . . Wheel . | . . . . Hover . | . . . . Flight . | . . . . Utility 8 | 2 5 . 1 Device 1 | 1 . . . Storage 5 | 1 4 . . Processor . | . . . . Hackware . | . . . . Protection 2 | . 1 . 1 Artifact . | . . . . Weapon 13 | 2 7 . 4 Energy Gun 8 | 2 3 . 3 Energy Cannon 1 | . 1 . . Ballistic Gun . | . . . . Ballistic Cannon . | . . . . Launcher 1 | . . . 1 Special Weapon 1 | . 1 . . Impact Weapon . | . . . . Slashing Weapon 1 | . 1 . . Piercing Weapon . | . . . . Special Melee Weapon 1 | . 1 . . Unidentified Prototypes . | . . . . Parts Lost 6 | . 2 . 4 Power . | . . . . Propulsion 1 | . . . 1 Utility 1 | . . . 1 Weapon 4 | . 2 . 2 Highest Loss Streak 3 | . 1 . 3 To Critical Strikes . | . . . . Average Backups 16 | 3 11 19 19 Power . | . 1 1 1 Propulsion 3 | 1 3 3 2 Utility 6 | . 2 9 8 Weapon 5 | . 3 6 6 Tool/Special . | . . . . Unused Backups 20 | . 4 1 15 Power 2 | . 1 . 1 Propulsion 4 | . 2 . 2 Utility 8 | . 1 1 6 Weapon 5 | . . . 5 Tool/Special 1 | . . . 1 Average Slot Usage (%) 99 | . 99 100 99 Engine 14 | . 14 14 14 Treads 22 | . 13 28 28 Leg 5 | . 14 . . Device 10 | . 12 3 13 Storage 14 | . 14 14 14 Protection 3 | . 1 10 . Energy Gun 22 | . 23 28 18 Slashing Weapon 4 | . 2 . 9 Peak Build Rating 13 | 7 10 10 13 Average Rating 9 | 6 7 9 11 On Entrance 6 | . 7 9 10 Naked Turns . | . . . . Heaviest Build 57 | 15 52 54 57 Greatest Support 40 | 20 40 40 40 Greatest Overweight (x) 2 | 2 1 1 1 Average Overweight (x) . | . . 1 1 Largest Inventory Capacity 20 | 8 20 20 20 Average Capacity 17 | 7 12 20 20 Most Carried 20 | 6 20 20 20 Average Carried 16 | 3 11 19 19 Final Capacity 20 | 8 20 20 20 Final Carried 20 | 6 20 20 16 Class Distribution -------------------- 98% | Mutant Dominant Class ---------------- Mutant | -10/Materials Mutant | -10/Mines Mutant | -10/Subcaves Resources | -11 -10 -10 -10 ----------- Run | Yrd Mat Min Sub Matter Collected 867 | 226 375 146 120 Remotely . | . . . . Salvage Created 1140 | 44 736 181 179 Parts 59 | 6 40 5 8 Haulers Intercepted 2 | . 2 . . Recyclers Shooed . | . . . . Parts Field Recycled . | . . . . Retrieved Matter . | . . . . Parts Self-Destructed 5 | . . . 5 Prevented . | . . . . Kills | -11 -10 -10 -10 ------- Run | Yrd Mat Min Sub Combat Hostiles Destroyed 18 | . 15 2 1 Guns 15 | . 12 2 1 Cannons 1 | . 1 . . AOE 1 | . 1 . . Classes Destroyed 10 | 1 6 . 3 Worker 1 | . 1 . . Tunneler 2 | 2 . . . Hauler 2 | . 2 . . Recycler 2 | . 1 1 . Mechanic 1 | . 1 . . Swarmer 3 | . 3 . . Grunt 14 | . 12 2 . Artisan 1 | . . . 1 Cobbler 1 | . . . 1 Subdweller 1 | . . . 1 Thug 1 | . . . 1 Best Kill Streak 6 | 1 6 2 1 Combat Bots Only 5 | . 5 2 1 Max Kills in Single Turn 1 | 1 1 1 1 Gunslinging . | . . . . Exploded 1 | . 1 . . Melee . | . . . . Uniques/NPCs Destroyed . | . . . . Combat | -11 -10 -10 -10 -------- Run | Yrd Mat Min Sub Hostile Shots Fired 116 | . 81 3 32 Missed 32 | . 21 2 9 Hits 84 | . 60 1 23 Projectile 84 | . 60 1 23 Critical Strikes 2 | . 1 . 1 Damage Taken 1236 | . 703 10 523 Core 254 | . 156 . 98 Absorbed by Shields . | . . . . Regen/Repaired (Parts) 11 | . 11 . . Core Remaining (%) 100 | 100 . . . Volleys Fired 93 | 3 68 9 13 Largest 2 | 2 2 2 2 Hottest 125 | 90 110 80 125 Shots Fired 160 | 6 111 18 25 Gun 149 | 6 100 18 25 Cannon 5 | . 5 . . Launcher . | . . . . Special 6 | . 6 . . Kinetic . | . . . . Thermal 80 | 3 59 . 18 Explosive . | . . . . Electromagnetic 80 | 3 52 18 7 Robot Hit Streak 8 | 1 8 2 5 Robot Miss Streak 5 | 1 5 3 2 Penetration Max . | . . . . Secondary Targets . | . . . . Shots Hit Robots 100 | 3 67 8 22 Core Hits 41 | 2 30 4 5 Critical Kills . | . . . . Critical Parts Destroyed . | . . . . Critical Strikes 4 | 1 3 . . Burn 4 | 1 3 . . Melee Attacks 26 | . 14 . 12 Impact . | . . . . Slashing 21 | . 9 . 12 Piercing . | . . . . Sneak Attacks 10 | . 7 . 3 Combat Hostiles . | . . . . Follow-up Attacks . | . . . . Damage Inflicted 1566 | 37 1028 113 388 Guns 1179 | 37 776 113 253 Cannons 73 | . 73 . . Explosions 152 | . 111 . 41 Melee 145 | . 51 . 94 Ramming 17 | . 17 . . Kinetic . | . . . . Thermal 768 | 24 483 . 261 Explosive . | . . . . Electromagnetic 636 | 13 477 113 33 Impact . | . . . . Slashing 145 | . 51 . 94 Piercing . | . . . . Highest Corruption 2 | . 2 2 2 Average Corruption 2 | . 2 2 2 Corruption Purged . | . . . . Corruption Blocked . | . . . . Effects 46 | . 11 14 21 Message Errors 9 | . 3 5 1 Matter Fused 12 | . 3 4 5 Heat Flow Errors 6 | . 1 2 3 Energy Discharges 8 | . 1 2 5 Parts Fused 1 | . . . 1 Data Loss (minor) 6 | . 3 1 2 Misfires 3 | . . . 3 Weapon Failures 1 | . . . 1 Overload Shots . | . . . . Overflow Damage 1 | . 1 . . Projectiles . | . . . . Explosions . | . . . . Melee 1 | . 1 . . Knockbacks . | . . . . Impact . | . . . . Kinetic . | . . . . Secondary . | . . . . Self-Inflicted Damage 53 | . . . 53 Shots 1 | . . . 1 Rammed . | . . . . Targets Rammed 2 | . 2 . . Kicked 2 | . 2 . . Crushed . | . . . . Highest Temperature 230 | 60 230 153 200 Average Temperature 62 | 26 65 59 56 Received Heat Transfer 369 | . 321 6 42 Siege Activations . | . . . . Martial Activations . | . . . . Shielding Activations . | . . . . Robots Disrupted 1 | . 1 . . Combat Hostiles 1 | . 1 . . Robots Corrupted 2 | . 2 . . Combat Hostiles 1 | . 1 . . Parts Fried 1 | . 1 . . Impact Corruptions 1 | . 1 . . Robots Melted . | . . . . Combat Hostiles . | . . . . Parts Melted 7 | . 6 . 1 Heat Transferred 1920 | 148 1374 . 398 Parts Sabotaged . | . . . . Parts Stolen . | . . . . Parts Stripped . | . . . . Power Chain Reactions 2 | . 1 . 1 Alert | -11 -10 -10 -10 ------- Run | Yrd Mat Min Sub Maximum Alert Level . | . . . . Low Security (%) 100 | 100 100 100 . Level 1 . | . . . . Level 2 . | . . . . Level 3 . | . . . . Level 4 . | . . . . Level 5 . | . . . . High Security . | . . . . Max Security . | . . . . Peak Influence 125 | 5 125 50 . Initial 41 | . . 41 . Average 25 | 1 40 4 . Influence Increases 666 | 10 601 55 . Destroy 0b10 Robot/C 380 | . 340 40 . Destroy 0b10 Robot/NC 40 | 10 25 5 . Destroy Leader 94 | . 84 10 . Allied During Kill 3 | . 3 . . Successful Hack 38 | . 38 . . Disable Machine 60 | . 60 . . Destroy Structure 6 | . 6 . . Lose Combat Pursuer 45 | . 45 . . Influence Decreases 666 | 10 494 162 . Entered New Map 66 | . . 66 . Time Decay 566 | 10 460 96 . Lost Part 10 | . 10 . . Lost Ally 24 | . 24 . . Squads Dispatched 5 | . 5 . . Investigation 5 | . 5 . . Extermination . | . . . . Reinforcement . | . . . . Assault . | . . . . Garrison . | . . . . Intercept . | . . . . Searches Triggered . | . . . . Construction Impeded . | . . . . Haulers Reinforced . | . . . . Active Scanning Responses . | . . . . Cargo Convoy Interrupts . | . . . . Stealth | -11 -10 -10 -10 --------- Run | Yrd Mat Min Sub Distress Signals 2 | . 2 . . Communications Jammed . | . . . . Distress Signals . | . . . . Times Spotted 46 | . 36 3 7 Peak Tracking Total 5 | . 5 3 3 Tactical Retreats 2 | . 2 . . Traps | -11 -10 -10 -10 ------- Run | Yrd Mat Min Sub Traps Triggered 4 | . 4 . . Indirectly 1 | . 1 . . Trap Hack Attempts . | . . . . Triggered . | . . . . Disarmed . | . . . . Reprogrammed . | . . . . Reused . | . . . . Traps Extracted . | . . . . Installed . | . . . . Triggered . | . . . . Machines | -11 -10 -10 -10 ---------- Run | Yrd Mat Min Sub Machines Disabled 4 | . 4 . . Max in Single Turn 1 | . 1 . . Machines Repaired . | . . . . Machines Dismantled . | . . . . Machines Sabotaged . | . . . . Overloaded Fab Kills . | . . . . Hacking | -11 -10 -10 -10 --------- Run | Yrd Mat Min Sub Machines Accessed 10 | . 10 . . Terminals 7 | . 7 . . Fabricators . | . . . . Repair Stations 1 | . 1 . . Recycling Units 2 | . 2 . . Scanalyzers . | . . . . Garrison Access . | . . . . Total Hacks 36 | . 36 . . Successful 15 | . 15 . . Failed 21 | . 21 . . Catastrophic 1 | . 1 . . Database Lockouts . | . . . . Manual 14 | . 14 . . Terminals 26 | . 26 . . Fabricators . | . . . . Repair Stations 1 | . 1 . . Recycling Units 9 | . 9 . . Scanalyzers . | . . . . Garrison Access . | . . . . Terminal Hacks 8 | . 8 . . Robot Analysis 2 | . 2 . . Prototype ID Bank 1 | . 1 . . Emergency Access Points 1 | . 1 . . Locate Traps 1 | . 1 . . Registered Components 1 | . 1 . . Zone Layout 2 | . 2 . . Fabricator Hacks . | . . . . Repair Station Hacks . | . . . . Recycling Unit Hacks 1 | . 1 . . Retrieve Components 1 | . 1 . . Scanalyzer . | . . . . Garrison Access Hacks . | . . . . Unauthorized Hacks 6 | . 6 . . Terminals 1 | . 1 . . Assimilate 1 | . 1 . . Fabricators . | . . . . Repair Stations 1 | . 1 . . Patch 1 | . 1 . . Recycling Units 4 | . 4 . . Reject 1 | . 1 . . Recyclers 1 | . 1 . . Mask 2 | . 2 . . Scanalyzers . | . . . . Garrison Access . | . . . . Data Cores Recovered . | . . . . Used . | . . . . Hacking Detections 9 | . 9 . . Full Trace Events 3 | . 3 . . Feedback Events . | . . . . Feedback Blocked . | . . . . Robot Schematics Acquired . | . . . . Robots Built . | . . . . Authchips . | . . . . Time . | . . . . Total Robot Build Rating . | . . . . Part Schematics Acquired . | . . . . Parts Built . | . . . . Authchips . | . . . . Time . | . . . . Total Part Build Rating . | . . . . Parts Repaired . | . . . . Time . | . . . . Parts Recycled . | . . . . Recycled Matter . | . . . . Retrieved Matter . | . . . . Retrieved Components 10 | . 10 . . Parts Scanalyzed . | . . . . Part Schematics Acquired . | . . . . Parts Damaged . | . . . . Bothacking | -11 -10 -10 -10 ------------ Run | Yrd Mat Min Sub Used RIF Installer . | . . . . Robots Hacked 2 | . 2 . . Non-combat 1 | . 1 . . Combat 1 | . 1 . . Robot Hacks Applied 4 | . 4 . . parse_system 2 | . 2 . . no_distress 1 | . 1 . . check_alert 1 | . 1 . . Relay Couplers Released . | . . . . Fabnet Peak Effective % . | . . . . Robots Rewired 1 | . 1 . . Allies Hacked . | . . . . Hacks Repelled . | . . . . Allies | -11 -10 -10 -10 -------- Run | Yrd Mat Min Sub Total Allies 3 | . 2 1 . Largest Group 1 | . 1 1 1 Highest-Rated Group 31 | . 16 31 31 Highest-Rated Ally 31 | . 16 31 31 Total Orders . | . . . . Ally Attacks 17 | . 5 . 12 Total Damage 229 | . 60 . 169 Kills 4 | . 2 . 2 Allies Corrupted . | . . . . Allies Melted . | . . . . Intel | -11 -10 -10 -10 ------- Run | Yrd Mat Min Sub Active Infowar (turns) 3794 | 59 1587 284 1864 Seismic 3794 | 59 1587 284 1864 Robot Analysis Total 2 | . 2 . . Derelict Logs Recovered 1 | . . 1 . Drone Launches . | . . . . Drone Recoveries . | . . . . Exploration | -11 -10 -10 -10 ------------- Run | Yrd Mat Min Sub Turns Passed 4904 | 125 1734 1064 1981 Spaces Moved 2075 | 54 843 411 767 Core 4 | 4 . . . Treads 1543 | 2 363 411 767 Legs 528 | 48 480 . . Wheels . | . . . . Hover . | . . . . Flight . | . . . . Fastest Speed 50 | 50 120 240 240 Average Speed 201 | 181 149 240 240 Slowest Speed 240 | 190 240 240 240 Overloaded Moves . | . . . . Propulsion Burnouts . | . . . . Robots Hopped . | . . . . Potential Cave-ins . | . . . . Cave-ins Triggered . | . . . . Exploration Rate (%) 55 | 5 98 76 42 Regions Visited 3 Branch Regions 2 Pre-discovered Areas . | . . . . Known Exits Taken . | . . . . Unknown Exits Taken 3 | 1 1 1 . Scrap Searched 1 | . . 1 . Spaces Dug 3 | . 3 . . Terrain Destroyed 11 | . 5 . 6 Melee 3 | . 3 . . Projectile . | . . . . AOE 8 | . 2 . 6 Terrain Rammed . | . . . . Walls Destroyed . | . . . . Machines Disabled . | . . . . Actions | -11 -10 -10 -10 --------- Run | Yrd Mat Min Sub Total 2581 | 71 1174 472 864 Wait 266 | 1 176 42 47 Move 2072 | 53 842 410 767 Hop . | . . . . Pick Up 41 | 6 24 3 8 Fast Attach 7 | 7 . . . Attach 8 | . 2 . 6 Detach . | . . . . Swap 37 | 1 29 4 3 Drop 25 | . 13 4 8 Fire 93 | 3 68 9 13 Melee 26 | . 14 . 12 Ram . | . . . . Kick 2 | . 2 . . Crush . | . . . . Escape Stasis . | . . . . Rewire 4 | . 4 . . Trap . | . . . . Miscellaneous . | . . . . Route ------- -11/Scrapyard -10/Materials (discovered 5 exits: [*Mat x3] / [*Min x2]) -10/Mines (discovered 3 exits: [*Mat x2] / [*Sub]) -10/Subcaves (discovered 1 exit: [*Mat]) History --------- Turn | Location | Event 23 | -11/Scrapyard | Discovered new exit (range 15) 126 | -11/Scrapyard | Entered Materials 307 | -10/Materials | Build established: Mutant 457 | -10/Materials | Discovered new exit (range 7) 695 | -10/Materials | Discovered new exit (range 6) 700 | -10/Materials | Discovered new exit (range 16) 853 | -10/Materials | Discovered new exit (range 13) 1069 | -10/Materials | Discovered new exit (range 9) 1762 | -10/Materials | Core integrity fell below 50% 1860 | -10/Materials | Entered Mines 2023 | -10/Mines | Joined a pair of Derelicts in attacking an 0b10 outpost 2214 | -10/Mines | Escorted by a lone wolf Derelict 2238 | -10/Mines | Discovered new exit (range 9) 2276 | -10/Mines | Found DCF Scrap (12 items) 2544 | -10/Mines | Found a hidden stash of uninstalled traps 2604 | -10/Mines | Discovered new exit (range 10) 2912 | -10/Mines | Discovered new exit (range 5) 2924 | -10/Mines | Entered Subcaves 2924 | -10/Subcaves | Accompanied by 1 ally 3123 | -10/Subcaves | Discovered new exit (range 15) 3156 | -10/Subcaves | A swath of the cavern ceiling suddenly collapsed 3999 | -10/Subcaves | Shifting Twisted Machinery released Flamer 4007 | -10/Subcaves | Shifting Twisted Machinery released Sub. Monowheel 4880 | -10/Subcaves | Core integrity fell below 20% 4905 | -10/Subcaves | Destroyed by UO-O25(R) with Subdweller Laser Last Messages --------------- 04526_ System corrupted: Component data lost. 04557_ System corrupted: Matter fused (-9). 04557_ Acquired 9 matter. 04593_ System corrupted: Matter fused (-8). 04626_ System corrupted: Heat flow error (+131). 04793_ System corrupted: Energy discharge (-82). 04800_ Discarded Mining Claw. 04809_ Riot Gun destroyed. 04821_ System corrupted: Matter fused (-5). 04831_ System corrupted: Particle Gun failed to cycle. 04834_ VZ-EPM(R) destroyed. 04844_ Acquired Sub. Optics. 04845_ Acquired 38 matter. 04883_ Lgt. Treads destroyed. 04883_ Particle Gun destroyed. 04896_ Lgt. Armor Plating destroyed. 04899_ Identified Grenade Launcher. 04903_ Acquired 9 matter. 04904_ UO-O25(R) affixes Scrap Shield Fragment to Scrap Shield. Map ----- +----------------------------------------------------+ | ?????????????????????????????????????????????????? | | ?????????????????????????????????????????????????? | | ?????????????????????????????????????????????????? | | ?????????????????????????????????????????????????? | | ???????????????????????????? ????????????????? | | ???????????????????????????? ????????????????? | | ???????????????????????????? #???????????????? | | ????????????????????????????# #???????????????? | | ????????????????????????????# ????????????????? | | ???????????????????????????? ????????????????? | | ???????# ??????????????????? ????????????????? | | ??????? ?????????????????? ????????????????? | | ??###?? #??????????????????# ????????????????? | | ### ##? ### ????????? ????## ##?????#?????????? | | ## #? ?????????""???# ????? #???? ????? | | #?# ??????????""" ?# ???? ## ???? | | ### ????????????" ?# #### ?? | | #???????????#""" # """ ?? | | ##???????????????# ?? | | ####????????????## # ?? | | #???###???????# "#?? ?? | | #?#### #??????## "##????# ??? | | #?# #??????# "#???????? ??? | | #?## #####?## ##??????????? ???? | | #?## #" ###" ##?????????????????? | | ### @& R #??????????????????? | | ## R #??????????????????? | | ####### # ######??????????????????? | | ##?????## #### ##???????????????????????? | | #???????## ##??## #????????????????????????? | | ##????????#####????######????????????????????????? | | #????????????????????????????????????????????????? | | ?????????????????????????????????????????????????? | | #########????????????????????????????????????????? | | # # # ##???????????????????????????????????????? | | ##??????????????????????????????????????? | | #??????????????????????????????????????? | | # #??????????????????????????????????????? | | ###### ##?????????????????????????????????????? | | #??#### # #?????????????????????????????????????? | | #??# #?????????????????????????????????????? | | #??## #?????????????????????????????????????? | | #???## ##????????????????????????????????????? | | ###??## ##???????????????????????????????????? | | ## ##?# #???????????????????????????????????? | | ## ### ####????????????????????????????????? | | # #????????????????????????????????? | | #????????????????????????????????? | | ## ##????????????????????????????????? | | # ## ####????????????????????????????????? | +----------------------------------------------------+ Best States ------------- Heat Dissipation 25 Energy Generation 12 Energy Capacity 265 Matter Stores 300 Matter Capacity 300 Sight Range 16 Terrain Scan Density 10 Armor Coverage 150 Evasion (%) 55 Recoil Reduction 2 Item Schematics ----------------- None Robot Schematics ------------------ None Fabricated ------------ Nothing Repaired ---------- Nothing Alien Tech Used ----------------- None Achievements -------------- None Challenges ------------ None Game ------ Seed PlasmaConstructFrame Manual? 0 Play Time 00:34:27 Cumulative 80.7 hours Start 2025.06.03 @ 01:03:18 End 2025.06.03 @ 01:39:11 Sessions 1 Manual Loads 0 Difficulty Rogue Special Mode None Game No. 56 Rogue 56 Adventurer 0 Explorer 0 Win Type - Total 0 Types 0/0/0/0/0/0/0/0/0/0 Lore% 38 Gallery% 44 Achievement% 41 Wizard Run 0 Options --------- Layout 2 ASCII 0 Keyboard 0 Movement Numpad Keybinds 0 Fullscreen 0 Font 24/Proggy Map View 59x48 Zoom Use 0% Tactical HUD 1 Map Filters NONE Filters NONE Steam 1 RUN: 85075fda-8fdd-48d5-81bd-58633cb7956a